Cogmind - Beta 12 @@@ ROGUE MODE // 2023.03.25 @ 00:36:21 Player: Red Box Result: Destroyed by G-50 Soldier with Heavy Laser Performance ------------- Evolutions (5) 2500 Regions Visited (14) 2800 Robots Destroyed (168) 840 Value Destroyed (8407) 8407 Prototype IDs (29) 580 Alien Tech Used (1) 200 Bonus (5007) 5007 TOTAL SCORE: 20334 Bonus ------- Triggered High Security 500 High Alert Combat Kills 1682 Follower Combat Kills 2401 Entered Garrisons 400 Met Data Miner 300 Friendly Fire -276 Cogmind --------- Core Integrity 0/1000 Matter 134/300 Energy 83/450 System Corruption 0% Temperature Cool (13) Movement Walking (190) Ox1 Location -5/Factory Parts ------- > --- POWER (1) -------- (None) > --- PROPULSION (2) --- Carbon-fiber Leg Carbon-fiber Leg > --- UTILITY (13) ----- High-capacity Storage Unit Energy Well 0b10 Decoder Chip [Looter] Advanced Targeting Computer Experimental Power Shielding Graphene Brace Focal Shield Experimental Thermal Shield > --- WEAPON (2) ------- Railgun Mini Assault Cannon > --- INVENTORY (20) --- Advanced Power Amplifier Matter Compressor (0) Experimental Sensor Array Encrypted Comm Array Advanced System Restoration Module Lance Peak State ------------ > --- POWER ------------ Neutrino Core > --- PROPULSION ------- Armored Heavy Treads > --- UTILITY ---------- High-capacity Storage Unit Experimental Sensor Array 0b10 Decoder Chip [Looter] Advanced Targeting Computer Advanced Target Analyzer Advanced Transmission Jammer Cloaking Device Improved Powered Armor Graphene Brace Experimental Thermal Shield Improved Force Field Improved Corruption Screen Improved Trap Extractor > --- WEAPON ----------- Mini Assault Cannon Lance > --- INVENTORY -------- Neutrino Core Medium Treads Armored Wheel Advanced Power Amplifier Energy Well Matter Compressor Encrypted Comm Array Weapon Cycler Experimental Power Shielding Improved Powered Armor Focal Shield Advanced System Restoration Module Improved Lightning Gun Compact Ion Cannon Heavy Machine Gun Railgun Mini Assault Cannon Hardcell Cannon [Rating: 118] Favorites ----------- Power Neutrino Core Engine Heavy Ion Engine Power Core Neutrino Core Propulsion Armored Wheel Treads Armored Heavy Treads Leg Aluminum Leg Wheel Armored Wheel Utility High-capacity Storage Unit Device Graphene Brace Storage High-capacity Storage Unit Processor Improved Targeting Computer Hackware Makeshift System Shield Protection Hardened Light Armor Plating Weapon Mini Assault Cannon Energy Gun EM Pulse Gun Energy Cannon Compact Ion Cannon Ballistic Gun Assault Rifle Ballistic Cannon Mini Assault Cannon Launcher Missile Launcher Special Weapon Stasis Beam Impact Weapon Maul Piercing Weapon Lance Build | -11 -10 -10 -9 -9 -8 -8 -7 -7 -7 -6 -6 -6 -5 -5 ------- Run | Jun Mat Min Mat Min Mat Gar Fac Gar Sto Fac Low Dat Pro Fac Slots Evolved 10 | . . . 2 . 2 . 2 . . 2 . . . 2 Power . | . . . . . . . . . . . . . . . Propulsion . | . . . . . . . . . . . . . . . Utility 10 | . . . 2 . 2 . 2 . . 2 . . . 2 Weapon . | . . . . . . . . . . . . . . . Parts Attached 202 | 7 16 2 29 . 15 10 7 7 7 38 21 . 16 27 Power 17 | 1 2 . 3 . 1 1 . 1 3 2 1 . 1 1 Engine 10 | 1 2 . 3 . 1 1 . . 1 . 1 . . . Core 7 | . . . . . . . . 1 2 2 . . 1 1 Reactor . | . . . . . . . . . . . . . . . Propulsion 18 | 2 3 1 3 . 1 1 1 1 . 1 . . . 4 Treads 2 | . . . . . . . . . . 1 . . . 1 Leg 4 | 2 . . . . . . . . . . . . . 2 Wheel 12 | . 3 1 3 . 1 1 1 1 . . . . . 1 Hover . | . . . . . . . . . . . . . . . Flight . | . . . . . . . . . . . . . . . Utility 95 | 2 1 . 11 . 10 6 6 4 . 18 10 . 13 14 Device 53 | 1 . . 1 . 7 1 4 2 . 11 7 . 9 10 Storage 8 | 1 1 . 3 . . . . 1 . . . . . 2 Processor 8 | . . . 2 . . . 1 . . 2 2 . 1 . Hackware 4 | . . . 1 . 2 . . . . 1 . . . . Protection 22 | . . . 4 . 1 5 1 1 . 4 1 . 3 2 Artifact . | . . . . . . . . . . . . . . . Weapon 72 | 2 10 1 12 . 3 2 . 1 4 17 10 . 2 8 Energy Gun 11 | . 6 1 1 . . . . . . 2 . . . 1 Energy Cannon 6 | . . . . . . 1 . . . 4 . . . 1 Ballistic Gun 5 | 2 . . . . . . . . . . 1 . . 2 Ballistic Cannon 29 | . . . 8 . 2 1 . 1 3 5 4 . 2 3 Launcher 10 | . 1 . 1 . 1 . . . 1 6 . . . . Special Weapon 5 | . 3 . . . . . . . . . 2 . . . Impact Weapon 3 | . . . 2 . . . . . . . 1 . . . Slashing Weapon . | . . . . . . . . . . . . . . . Piercing Weapon 3 | . . . . . . . . . . . 2 . . 1 Special Melee Weapon . | . . . . . . . . . . . . . . . Unidentified Prototypes 10 | . . . 1 . . . . . 3 3 1 . 2 . Corrupted Parts 2 | . . . . . . . . . . . . . 2 . System Corruption 16 | . . . . . . . . . . . . . 16 . Parts Lost 42 | . 2 1 5 . . 3 . . . 8 3 . 1 19 Power 5 | . 1 . 1 . . . . . . 1 . . . 2 Propulsion 8 | . 1 1 2 . . . . . . 1 . . . 3 Utility 20 | . . . . . . 2 . . . 5 3 . 1 9 Weapon 9 | . . . 2 . . 1 . . . 1 . . . 5 Highest Loss Streak 19 | . 1 1 2 . . 2 . . . 4 2 . 1 19 To Critical Strikes . | . . . . . . . . . . . . . . . Average Slot Usage (%) 91 | . 97 99 97 88 89 89 91 87 89 88 92 93 92 78 Engine 5 | . 12 14 10 11 8 9 7 1 . . 3 6 . . Core 2 | . . . . . . . . 5 6 5 2 . 5 3 Treads 1 | . . . . . . . . . . . 6 6 6 3 Leg 1 | . 12 . . . . . . . . . . . . 1 Wheel 11 | . 14 27 21 22 17 18 15 15 15 11 . . . . Device 18 | . 14 14 1 . 11 9 17 16 15 27 34 37 31 30 Storage 8 | . 14 14 11 11 9 9 7 7 7 6 6 6 6 5 Processor 11 | . . . 10 11 9 9 11 15 15 12 15 18 18 18 Hackware 6 | . . . 10 11 15 18 15 9 7 4 1 . . . Protection 7 | . . . 10 11 8 8 7 7 7 5 6 6 10 4 Energy Gun 2 | . 19 27 . . . . . . . . . . . . Ballistic Cannon 9 | . . . 19 11 8 8 7 7 12 7 11 . 11 6 Naked Turns . | . . . . . . . . . . . . . . . Heaviest Build 102 | 15 31 30 65 65 72 72 77 83 83 102 79 70 95 95 Greatest Support 60 | 20 32 32 28 24 24 24 24 24 24 60 60 60 60 60 Greatest Overweight (x) 6 | 2 1 1 5 2 2 2 3 3 3 4 1 1 1 6 Average Overweight (x) 1 | . . . 1 2 2 2 2 2 2 3 1 1 1 1 Largest Inventory Capacity 20 | 8 15 15 20 20 20 20 20 20 20 20 20 20 20 20 Average Capacity 19 | 7 14 15 19 20 20 20 20 20 20 20 20 20 20 19 Most Carried 20 | 8 15 15 20 20 20 20 20 20 20 20 20 20 20 19 Average Carried 18 | 5 13 14 17 19 19 18 19 19 19 18 17 20 19 15 Final Capacity 20 | 8 15 15 20 20 20 20 20 20 20 20 20 20 20 20 Final Carried 20 | 8 15 14 20 20 20 20 20 20 20 13 20 20 20 6 Class Distribution -------------------- 58% | Mutant 20% | Hacker-Mutant 11% | Commander-Mutant 6% | Scavenger-Mutant Dominant Class ---------------- Mutant | -10/Materials Mutant | -10/Mines Mutant | -9/Materials Mutant | -9/Mines Hacker-Mutant | -8/Materials Hacker-Mutant | -8/Garrison Hacker-Mutant | -7/Factory Commander-Mutant | -7/Garrison Commander-Mutant | -7/Storage Mutant | -6/Factory Mutant | -6/Lower Caves Mutant | -6/Data Miner Mutant | -5/Proximity Caves Infiltrator-Mutant | -5/Factory Resources | -11 -10 -10 -9 -9 -8 -8 -7 -7 -7 -6 -6 -6 -5 -5 ----------- Run | Jun Mat Min Mat Min Mat Gar Fac Gar Sto Fac Low Dat Pro Fac Matter Collected 7067 | 312 481 124 711 . 613 697 112 208 494 1476 873 . 583 383 Remotely . | . . . . . . . . . . . . . . . Salvage Created 5516 | 125 499 93 676 . 540 620 127 . 115 1523 664 . 166 368 Parts 284 | 5 21 3 74 . 35 36 5 . 7 52 27 . 4 15 Haulers Intercepted 4 | . 1 . 1 . . . . . 1 . . . 1 . Recyclers Shooed 4 | . . . 1 . . . . . . 2 . . . 1 Parts Field Recycled . | . . . . . . . . . . . . . . . Retrieved Matter . | . . . . . . . . . . . . . . . Parts Self-Destructed 43 | . . . . . . . . . . . 25 . 18 . Prevented 1 | . . . . . . . . . . . . . 1 . Kills | -11 -10 -10 -9 -9 -8 -8 -7 -7 -7 -6 -6 -6 -5 -5 ------- Run | Jun Mat Min Mat Min Mat Gar Fac Gar Sto Fac Low Dat Pro Fac Combat Hostiles Destroyed 130 | . 8 2 23 . 18 18 3 . 2 26 14 . 5 11 Melee 1 | . . . . . . . . . . 1 . . . . Guns 13 | . 6 2 . . . . . . . 1 1 . . 3 Cannons 102 | . . . 19 . 17 17 3 . 2 19 13 . 5 7 AOE 13 | . 2 . 4 . 1 . . . . 5 . . . 1 Classes Destroyed 21 | 2 4 . 4 . 3 2 . . 1 2 1 . 2 . Worker 4 | . . . . . 2 . . . . 2 . . . . Builder 3 | . 1 . . . . . . . . 2 . . . . Tunneler 3 | 2 . . 1 . . . . . . . . . . . Hauler 4 | . 1 . 1 . . . . . 1 . . . 1 . Recycler 6 | 1 1 . . . . . . . . 4 . . . . Minesweeper 1 | . . . . . . . . . . . . . 1 . Operator 5 | . . . 1 . 2 . . . . 1 . . . 1 Watcher 14 | . 2 . 5 . 4 1 . . . 2 . . . . Swarmer 20 | . . . 10 . 6 . . . . . 2 . . 2 Cutter 1 | . . . . . . 1 . . . . . . . . Saboteur 2 | . . . . . . . . . . 1 . . . 1 Grunt 49 | . 8 2 2 . 4 5 1 . . 15 5 . 2 5 Brawler 9 | . . . 1 . 1 1 . . . 4 2 . . . Duelist 12 | . . . . . 1 5 . . . 1 4 . . 1 Researcher 1 | . . . . . . . . . . . 1 . . . Sentry 22 | . . . 10 . 5 3 2 . . 1 1 . . . Demolisher 1 | . . . . . . . . . 1 . . . . . Specialist 5 | . . . . . . 3 . . 1 1 . . . . Hunter 3 | . . . . . 1 . . . . 1 . . . 1 Programmer 3 | . . . . . . . . . . 2 . . . 1 Assembled 3 | . . . . . . . . . . . . . 3 . Best Kill Streak 18 | 3 4 1 5 . 7 7 1 . 2 18 3 . 3 6 Combat Bots Only 8 | . 2 1 4 . 3 7 1 . 2 8 3 . 3 4 Max Kills in Single Turn 3 | 1 1 1 3 . 1 1 1 . 1 2 1 . 1 2 Gunslinging . | . . . . . . . . . . . . . . . Exploded 3 | . 1 . 3 . 1 . . . . 2 . . . 1 Melee 1 | . . . . . . . . . . 1 . . . . Uniques/NPCs Destroyed . | . . . . . . . . . . . . . . . Combat | -11 -10 -10 -9 -9 -8 -8 -7 -7 -7 -6 -6 -6 -5 -5 -------- Run | Jun Mat Min Mat Min Mat Gar Fac Gar Sto Fac Low Dat Pro Fac Damage Taken 11133 | . 612 92 737 . 610 792 192 4 380 2944 661 . 507 3602 Core 1607 | . 113 17 99 . 39 64 25 . 27 149 41 . 23 1010 Absorbed by Shields 887 | . . . . . 124 156 83 . . 104 198 . 111 111 Reduced by Siege Mode 94 | . . . . . . . . . . 44 . . 50 . Redirected to Shielding 44 | . . . . . . 4 . . . . 40 . . . Regen/Repaired (Parts) 1778 | . . . 443 . 438 . 66 . 20 811 . . . . Core Remaining (%) 78 | 100 . 48 . 75 . 81 . . 92 . . . 74 . Volleys Fired 530 | 7 61 11 58 . 61 86 10 21 13 90 47 . 22 43 Largest 2 | 2 2 2 2 . 1 1 1 1 2 2 2 . 2 2 Hottest 150 | 40 100 80 80 . 60 63 60 60 96 150 138 . 96 138 Shots Fired 793 | 14 117 16 116 . 61 86 10 21 22 135 85 . 40 70 Gun 183 | 14 108 16 6 . . . . . . 5 17 . . 17 Cannon 577 | . . . 109 . 60 86 10 21 21 118 61 . 38 53 Launcher 19 | . 4 . 1 . 1 . . . 1 12 . . . . Special 14 | . 5 . . . . . . . . . 7 . 2 . Kinetic 623 | 14 56 . 109 . 60 73 10 21 21 91 70 . 38 60 Thermal 39 | . 5 . . . . . . . . 19 8 . . 7 Explosive 19 | . 4 . 1 . 1 . . . 1 12 . . . . Electromagnetic 103 | . 52 16 6 . . 13 . . . 13 . . . 3 Robot Hit Streak 21 | 7 9 3 8 . 9 9 10 . 6 21 8 . 17 6 Robot Miss Streak 6 | 2 6 2 3 . 2 2 4 . 2 4 2 . 3 2 Penetration Max 1 | . . . . . . . . . . 1 1 . . 1 Secondary Targets 1 | . 1 . . . . . . . . . . . . . Max Gunslinging Chain 1 | . 1 . . . . . . . . . . . . . Shots Hit Robots 462 | 8 55 8 68 . 40 44 6 . 14 88 59 . 26 46 Core Hits 243 | 4 26 4 28 . 23 22 3 . 8 69 23 . 11 22 Critical Kills 1 | . . . . . . . . . . . . . . 1 Critical Parts Destroyed 1 | . . . . . . . . . . . 1 . . . Critical Strikes 37 | . . . 2 . 4 3 1 . . 9 9 . 5 4 Destroy 2 | . . . . . . . . . . . 1 . . 1 Blast 35 | . . . 2 . 4 3 1 . . 9 8 . 5 3 Melee Attacks 5 | . . . 1 . . . . . . . 2 . . 2 Impact 2 | . . . 1 . . . . . . . 1 . . . Slashing . | . . . . . . . . . . . . . . . Piercing 3 | . . . . . . . . . . . 1 . . 2 Sneak Attacks 1 | . . . . . . . . . . . 1 . . . Combat Hostiles . | . . . . . . . . . . . . . . . Follow-up Attacks . | . . . . . . . . . . . . . . . Damage Inflicted 17883 | 108 1178 111 1804 . 2563 2234 365 . 590 5139 1539 . 690 1562 Guns 1893 | 108 797 111 35 . . . . . . 126 285 . . 431 Cannons 13095 | . . . 1463 . 2287 2234 365 . 420 3431 1164 . 690 1041 Explosions 2805 | . 381 . 306 . 276 . . . 170 1582 . . . 90 Melee 90 | . . . . . . . . . . . 90 . . . Ramming . | . . . . . . . . . . . . . . . Kinetic 13046 | 108 377 . 1463 . 2287 1874 365 . 420 2926 1253 . 690 1283 Thermal 860 | . 31 . 123 . . . . . . 373 196 . . 137 Explosive 2561 | . 350 . 183 . 276 . . . 170 1582 . . . . Electromagnetic 1326 | . 420 111 35 . . 360 . . . 258 . . . 142 Impact . | . . . . . . . . . . . . . . . Slashing . | . . . . . . . . . . . . . . . Piercing 90 | . . . . . . . . . . . 90 . . . Highest Corruption 10 | . 1 1 . . . . . . . 8 8 3 10 . Average Corruption 4 | . 1 1 . . . . . . . 6 5 3 6 . Corruption Purged 14 | . . . . . . . . . . . 5 . 9 . Corruption Blocked 7 | . . . . . . . . . . . . . 2 5 Effects 130 | . 8 6 . . . . . . . 22 77 3 14 . Message Errors 35 | . 3 1 . . . . . . . 8 21 . 2 . Matter Fused 33 | . 2 1 . . . . . . . 5 19 1 5 . Heat Flow Errors 18 | . . . . . . . . . . 2 14 . 2 . Energy Discharges 12 | . 1 1 . . . . . . . . 7 1 2 . Parts Rejected 2 | . . 1 . . . . . . . 1 . . . . Parts Fused 1 | . . . . . . . . . . . 1 . . . Data Loss (minor) 15 | . . 2 . . . . . . . . 10 1 2 . Data Loss (major) 4 | . . . . . . . . . . 3 . . 1 . Misfires 4 | . 1 . . . . . . . . 1 2 . . . Alerts 3 | . . . . . . . . . . 1 2 . . . Weapon Failures 3 | . 1 . . . . . . . . 1 1 . . . Overload Shots . | . . . . . . . . . . . . . . . Overflow Damage 766 | . 1 . 82 . 250 66 21 . 6 288 . . . 52 Projectiles 622 | . . . 29 . 178 66 21 . 6 270 . . . 52 Explosions 144 | . 1 . 53 . 72 . . . . 18 . . . . Melee . | . . . . . . . . . . . . . . . Knockbacks 60 | . . . 2 . 10 11 . . 4 16 5 . 1 11 Impact . | . . . . . . . . . . . . . . . Kinetic 56 | . . . 2 . 9 10 . . 3 16 5 . 1 10 Secondary 4 | . . . . . 1 1 . . 1 . . . . 1 Self-Inflicted Damage 216 | . 34 . 29 . 111 . . . . 42 . . . . Shots 4 | . 1 . 1 . 1 . . . . 1 . . . . Rammed . | . . . . . . . . . . . . . . . Targets Rammed . | . . . . . . . . . . . . . . . Kicked . | . . . . . . . . . . . . . . . Crushed . | . . . . . . . . . . . . . . . Highest Temperature 532 | . 135 108 178 . 133 93 24 18 123 369 232 . 304 532 Average Temperature 66 | . 34 61 42 . 36 21 8 7 43 75 83 . 114 269 Received Heat Transfer 3062 | . 366 54 150 . 138 186 28 . 87 960 111 . 211 771 Effects 13 | . . . . . . . . . . . . . 2 11 Shutdowns 1 | . . . . . . . . . . . . . . 1 Energy Bleed 2 | . . . . . . . . . . . . . . 2 Interference 4 | . . . . . . . . . . . . . 2 2 Matter Decay 1 | . . . . . . . . . . . . . . 1 Damage (minor) 1 | . . . . . . . . . . . . . . 1 Damage (major) 4 | . . . . . . . . . . . . . . 4 Siege Activations 2 | . . . . . . . . . . 1 . . 1 . Total Turns 52 | . . . . . . . . . . 31 . . 21 . Longest Duration 31 | . . . . . . . . . . 31 . . 21 . Robots Corrupted 1 | . . . . . . 1 . . . . . . . . Combat Hostiles 1 | . . . . . . 1 . . . . . . . . Parts Fried 10 | . 2 . . . 1 2 . . . 1 . . 1 3 Impact Corruptions 2 | . . . . . 1 . . . . . . . . 1 Robots Melted . | . . . . . . . . . . . . . . . Combat Hostiles . | . . . . . . . . . . . . . . . Parts Melted . | . . . . . . . . . . . . . . . Heat Transferred 1075 | . 50 . 100 . . . . . . 481 259 . . 185 Parts Sabotaged 3 | . . . . . . . . . . 3 . . . . Parts Stolen . | . . . . . . . . . . . . . . . Parts Stripped . | . . . . . . . . . . . . . . . Power Chain Reactions 2 | . 1 . 1 . . . . . . . . . . . Missiles Intercepted . | . . . . . . . . . . . . . . . Alert | -11 -10 -10 -9 -9 -8 -8 -7 -7 -7 -6 -6 -6 -5 -5 ------- Run | Jun Mat Min Mat Min Mat Gar Fac Gar Sto Fac Low Dat Pro Fac Peak Influence 2024 | 15 170 75 299 36 347 1405 915 1499 2024 1972 . . . 274 Initial 1100 | . 9 35 . 36 . 98 737 436 730 1100 . . . . Average 521 | 6 45 46 156 23 201 781 748 902 1417 1575 . . . 42 Maximum Alert Level 5 | . . . 1 . 1 4 3 4 5 5 . . . 1 Low Security (%) 44 | 100 100 100 70 100 39 11 . . . . . . . 82 Level 1 16 | . . . 29 . 60 7 . . . . . . . 17 Level 2 5 | . . . . . . 14 33 32 . . . . . . Level 3 11 | . . . . . . 36 66 42 8 . . . . . Level 4 15 | . . . . . . 29 . 25 63 60 . . . . Level 5 4 | . . . . . . . . . 16 39 . . . . High Security . | . . . . . . . . . 11 . . . . . Max Security . | . . . . . . . . . . . . . . . Squads Dispatched 38 | . 4 . . . 1 . . . 15 12 . . . 6 Investigation 4 | . 3 . . . . . . . . 1 . . . . Extermination 5 | . . . . . . . . . 2 2 . . . 1 Reinforcement 10 | . 1 . . . 1 . . . 2 3 . . . 3 Assault 12 | . . . . . . . . . 5 6 . . . 1 Garrison 7 | . . . . . . . . . 6 . . . . 1 Intercept . | . . . . . . . . . . . . . . . Searches Triggered . | . . . . . . . . . . . . . . . Construction Impeded 3 | . . . . . . . . . 1 1 . . . 1 Haulers Reinforced 1 | . . . . . . . . . . 1 . . . . Active Scanning Responses . | . . . . . . . . . . . . . . . Cargo Convoy Interrupts . | . . . . . . . . . . . . . . . Stealth | -11 -10 -10 -9 -9 -8 -8 -7 -7 -7 -6 -6 -6 -5 -5 --------- Run | Jun Mat Min Mat Min Mat Gar Fac Gar Sto Fac Low Dat Pro Fac Distress Signals 8 | . . . 4 . 3 . . . 1 . . . . . Communications Jammed 28 | . . . . . . . . . 4 20 . . . 4 Distress Signals 27 | . . . . . . . . . 3 20 . . . 4 Times Spotted 257 | . 20 1 38 . 30 33 6 . 22 57 18 . 12 20 Peak Tracking Total 8 | . 4 1 4 . 4 7 3 . 5 8 4 . 5 8 Tactical Retreats 11 | . . . . . 4 1 . . . 4 2 . . . Traps | -11 -10 -10 -9 -9 -8 -8 -7 -7 -7 -6 -6 -6 -5 -5 ------- Run | Jun Mat Min Mat Min Mat Gar Fac Gar Sto Fac Low Dat Pro Fac Traps Triggered 10 | . 1 . . . . 7 . . . 2 . . . . Indirectly . | . . . . . . . . . . . . . . . Trap Hack Attempts . | . . . . . . . . . . . . . . . Triggered . | . . . . . . . . . . . . . . . Disarmed . | . . . . . . . . . . . . . . . Reprogrammed 3 | . 3 . . . . . . . . . . . . . Reused 2 | . 1 . . . . . . . . . . . 1 . Traps Extracted . | . . . . . . . . . . . . . . . Installed 2 | . . . . . . . . . . . . . 2 . Triggered 3 | . 1 . . . . . . . . . . . 2 . Most Traps Carried 4 | . . . . . . . . . . . . . 4 2 Machines | -11 -10 -10 -9 -9 -8 -8 -7 -7 -7 -6 -6 -6 -5 -5 ---------- Run | Jun Mat Min Mat Min Mat Gar Fac Gar Sto Fac Low Dat Pro Fac Machines Disabled 32 | . 1 . 1 . 2 8 1 8 4 3 1 . . 3 Max in Single Turn 3 | . 1 . . . 1 1 . 1 1 1 1 . . 3 Garrison Access 1 | . . . . . . . . . . . . . . 1 Garrison Relay 11 | . . . . . . 6 . 5 . . . . . . Machines Repaired . | . . . . . . . . . . . . . . . Machines Sabotaged . | . . . . . . . . . . . . . . . Overloaded Fab Kills . | . . . . . . . . . . . . . . . Hacking | -11 -10 -10 -9 -9 -8 -8 -7 -7 -7 -6 -6 -6 -5 -5 --------- Run | Jun Mat Min Mat Min Mat Gar Fac Gar Sto Fac Low Dat Pro Fac Machines Accessed 77 | . 10 . 17 . 16 3 5 4 11 7 . 4 . . Terminals 49 | . 7 . 12 . 10 3 2 4 9 2 . . . . Fabricators 2 | . . . . . . . 1 . . 1 . . . . Repair Stations 9 | . 1 . 2 . 2 . 1 . 1 2 . . . . Recycling Units 8 | . 2 . 2 . 2 . . . . 2 . . . . Scanalyzers 2 | . . . 1 . 1 . . . . . . . . . Garrison Access 3 | . . . . . 1 . 1 . 1 . . . . . Total Hacks 356 | . 40 . 99 . 87 12 25 8 23 32 . 30 . . Successful 211 | . 24 . 63 . 51 2 10 5 7 19 . 30 . . Failed 142 | . 15 . 35 . 35 10 15 3 16 13 . . . . Catastrophic 22 | . . . 5 . 4 3 2 1 5 2 . . . . Database Lockouts 3 | . 1 . 1 . 1 . . . . . . . . . Manual 172 | . 24 . 59 . 55 2 15 2 8 7 . . . . Terminals 204 | . 30 . 63 . 53 12 13 8 20 5 . . . . Fabricators 7 | . . . . . . . 5 . . 2 . . . . Repair Stations 49 | . 3 . 9 . 14 . 4 . 2 17 . . . . Recycling Units 36 | . 7 . 10 . 11 . . . . 8 . . . . Scanalyzers 24 | . . . 17 . 7 . . . . . . . . . Garrison Access 6 | . . . . . 2 . 3 . 1 . . . . . Terminal Hacks 81 | . 10 . 14 . 13 2 2 4 4 2 . 30 . . Record 11 | . . . . . . . . . . . . 11 . . Part Schematic 12 | . . . . . . . . . 1 . . 11 . . Robot Schematic 6 | . . . . . 1 . . . . . . 5 . . Robot Analysis 20 | . 6 . 5 . 6 . . . 2 1 . . . . Prototype ID Bank 9 | . 1 . 2 . 3 . . . . . . 3 . . Open Door 3 | . . . . . . 1 . 1 1 . . . . . Branch Access Points 4 | . . . 2 . 1 . . . . 1 . . . . Emergency Access Points 2 | . . . . . . 1 . 1 . . . . . . Terminal Index 2 | . . . 1 . 1 . . . . . . . . . Unreport Threat 3 | . 1 . 1 . . . 1 . . . . . . . Locate Traps 3 | . 1 . 1 . . . 1 . . . . . . . Reprogram Traps 1 | . 1 . . . . . . . . . . . . . Security Status 3 | . . . 2 . 1 . . . . . . . . . Garrison Registry 1 | . . . . . . . . 1 . . . . . . Security Stations 1 | . . . . . . . . 1 . . . . . . Fabricator Hacks 2 | . . . . . . . . . . 2 . . . . Load Schematic 1 | . . . . . . . . . . 1 . . . . Build 1 | . . . . . . . . . . 1 . . . . Repair Station Hacks 35 | . 1 . 8 . 12 . 2 . 2 10 . . . . Scan Component 19 | . 1 . 4 . 6 . 1 . 1 6 . . . . Repair 16 | . . . 4 . 6 . 1 . 1 4 . . . . Recycling Unit Hacks 9 | . 3 . 3 . 2 . . . . 1 . . . . Report Inventory 6 | . 2 . 2 . 2 . . . . . . . . . Retrieve Components 3 | . 1 . 1 . . . . . . 1 . . . . Scanalyzer 22 | . . . 17 . 5 . . . . . . . . . Insert Component 10 | . . . 8 . 2 . . . . . . . . . Analyze 12 | . . . 9 . 3 . . . . . . . . . Garrison Access Hacks 2 | . . . . . 1 . 1 . . . . . . . Unlock Access 2 | . . . . . 1 . 1 . . . . . . . Unauthorized Hacks 60 | . 10 . 21 . 18 . 5 1 1 4 . . . . Terminals 42 | . 6 . 16 . 13 . 4 1 1 1 . . . . Track 11 | . 3 . 4 . 3 . 1 . . . . . . . Assimilate 5 | . . . 3 . 2 . . . . . . . . . Botnet 22 | . 2 . 8 . 7 . 2 1 1 1 . . . . Operators 4 | . 1 . 1 . 1 . 1 . . . . . . . Fabricators 1 | . . . . . . . 1 . . . . . . . Liberate 1 | . . . . . . . 1 . . . . . . . Repair Stations . | . . . . . . . . . . . . . . . Recycling Units 17 | . 4 . 5 . 5 . . . . 3 . . . . Reject 6 | . 1 . 2 . 2 . . . . 1 . . . . Recyclers 3 | . . . 1 . 1 . . . . 1 . . . . Mask 6 | . 1 . 2 . 2 . . . . 1 . . . . Tunnel 2 | . 2 . . . . . . . . . . . . . Scanalyzers . | . . . . . . . . . . . . . . . Garrison Access . | . . . . . . . . . . . . . . . Data Cores Recovered 3 | . . . 1 . 1 . . . . 1 . . . . Used 2 | . . . . . 1 . . . . 1 . . . . Hacking Detections 63 | . 9 . 14 . 14 3 5 3 10 5 . . . . Full Trace Events 1 | . . . . . . . . . . 1 . . . . Feedback Events . | . . . . . . . . . . . . . . . Feedback Blocked . | . . . . . . . . . . . . . . . Robot Schematics Acquired 6 | . . . . . 1 . . . . . . 5 . . Robots Built 2 | . . . . . . . . . . 2 . . . . Authchips . | . . . . . . . . . . . . . . . Time 40 | . . . . . . . . . . 40 . . . . Total Robot Build Rating 2 | . . . . . . . . . . 2 . . . . Part Schematics Acquired 22 | . . . 8 . 2 . . . 1 . . 11 . . Parts Built . | . . . . . . . . . . . . . . . Authchips . | . . . . . . . . . . . . . . . Time . | . . . . . . . . . . . . . . . Total Part Build Rating . | . . . . . . . . . . . . . . . Parts Repaired 16 | . . . 4 . 6 . 1 . 1 4 . . . . Time 783 | . . . 128 . 327 . 32 . 56 240 . . . . Parts Recycled . | . . . . . . . . . . . . . . . Recycled Matter . | . . . . . . . . . . . . . . . Retrieved Matter . | . . . . . . . . . . . . . . . Retrieved Components 21 | . 2 . 10 . . . . . . 9 . . . . Parts Scanalyzed 10 | . . . 8 . 2 . . . . . . . . . Part Schematics Acquired 10 | . . . 8 . 2 . . . . . . . . . Parts Damaged 1 | . . . . . 1 . . . . . . . . . Bothacking | -11 -10 -10 -9 -9 -8 -8 -7 -7 -7 -6 -6 -6 -5 -5 ------------ Run | Jun Mat Min Mat Min Mat Gar Fac Gar Sto Fac Low Dat Pro Fac Used RIF Installer . | . . . . . . . . . . . . . . . Robots Hacked . | . . . . . . . . . . . . . . . Non-combat . | . . . . . . . . . . . . . . . Combat . | . . . . . . . . . . . . . . . Robot Hacks Applied . | . . . . . . . . . . . . . . . Relay Couplers Released 49 | . . . . . . 29 . 18 . . . . . 2 Machine Destruction 49 | . . . . . . 29 . 18 . . . . . 2 Fabnet Peak Effective % . | . . . . . . . . . . . . . . . Robots Rewired 11 | . . . . . . 3 . 6 . . 2 . . . Allies Hacked . | . . . . . . . . . . . . . . . Hacks Repelled . | . . . . . . . . . . . . . . . Allies | -11 -10 -10 -9 -9 -8 -8 -7 -7 -7 -6 -6 -6 -5 -5 -------- Run | Jun Mat Min Mat Min Mat Gar Fac Gar Sto Fac Low Dat Pro Fac Total Allies 38 | . . 2 1 . 1 4 3 9 13 2 2 . 1 . Largest Group 21 | . . 2 2 1 1 3 4 13 21 17 2 2 3 . Highest-Rated Group 584 | . . 57 57 10 10 71 82 427 584 499 61 61 157 . Highest-Rated Ally 100 | . . 31 31 10 10 39 34 95 100 100 32 32 96 . Total Orders 30 | . . . 12 . 3 6 . 2 . . 5 2 . . STAY 16 | . . . 6 . 2 3 . 1 . . 3 1 . . FOLLOW 14 | . . . 6 . 1 3 . 1 . . 2 1 . . Ally Attacks 397 | . . . 17 . . 54 24 29 142 99 13 . 19 . Total Damage 8440 | . . . 128 . . 646 220 750 3794 2058 314 . 530 . Kills 86 | . . . 3 . . 12 3 5 37 20 2 . 4 . Allies Corrupted . | . . . . . . . . . . . . . . . Allies Melted 1 | . . . . . . . . . . . . . 1 . Intel | -11 -10 -10 -9 -9 -8 -8 -7 -7 -7 -6 -6 -6 -5 -5 ------- Run | Jun Mat Min Mat Min Mat Gar Fac Gar Sto Fac Low Dat Pro Fac Robot Analysis Total 20 | . 6 . 5 . 6 . . . 2 1 . . . . Derelict Logs Recovered 6 | . . 1 . 1 . . . . . . 2 . 2 . Drone Launches . | . . . . . . . . . . . . . . . Drone Recoveries . | . . . . . . . . . . . . . . . Decoded 0b10 Intel 22 | . . . . . . . . . . . . . . 22 Items 22 | . . . . . . . . . . . . . . 22 Exploration | -11 -10 -10 -9 -9 -8 -8 -7 -7 -7 -6 -6 -6 -5 -5 ------------- Run | Jun Mat Min Mat Min Mat Gar Fac Gar Sto Fac Low Dat Pro Fac Turns Passed 20805 | 119 1876 615 2457 621 2485 1731 625 1262 972 1453 3204 195 2699 491 Spaces Moved 10798 | 51 957 514 1591 478 1382 1164 376 825 567 582 1167 79 988 77 Core 9 | 7 . . . . . . . . . . . . . 2 Treads 2354 | . . . . . . . . . . 57 1167 79 988 63 Legs 428 | 44 373 . . . . . . . . . . . . 11 Wheels 8007 | . 584 514 1591 478 1382 1164 376 825 567 525 . . . 1 Hover . | . . . . . . . . . . . . . . . Flight . | . . . . . . . . . . . . . . . Fastest Speed 50 | 50 100 100 105 120 120 120 120 120 120 135 250 250 250 150 Average Speed 152 | 115 131 105 119 120 120 120 134 134 134 151 250 250 250 246 Slowest Speed 350 | 150 190 115 165 120 120 120 135 135 135 250 250 250 250 350 Overloaded Moves . | . . . . . . . . . . . . . . . Propulsion Burnouts . | . . . . . . . . . . . . . . . Robots Hopped . | . . . . . . . . . . . . . . . Cave-ins Triggered . | . . . . . . . . . . . . . . . Exploration Rate (%) 68 | 5 99 94 88 91 82 94 13 98 89 18 97 69 91 2 Regions Visited 14 Branch Regions 6 Pre-discovered Areas 5 | . 2 1 . . . . . . . . 1 1 . . Known Exits Taken 4 | . . . 1 . 1 . 1 . . 1 . . . . Unknown Exits Taken 8 | 1 1 1 . 1 . . . . 1 . 1 1 1 . Scrap Searched 9 | . . 1 . 1 . . . . . . 4 . 3 . Spaces Dug 41 | . 5 . 1 . 4 11 . 8 . 10 1 . . 1 Terrain Destroyed 298 | . 24 . 26 . 59 25 7 8 22 101 11 . 5 10 Melee 3 | . . . 1 . . . . . . . 1 . . 1 Projectile 127 | . 5 . 8 . 22 25 7 8 5 23 10 . 5 9 AOE 168 | . 19 . 17 . 37 . . . 17 78 . . . . Terrain Rammed . | . . . . . . . . . . . . . . . Walls Destroyed . | . . . . . . . . . . . . . . . Machines Disabled . | . . . . . . . . . . . . . . . Actions | -11 -10 -10 -9 -9 -8 -8 -7 -7 -7 -6 -6 -6 -5 -5 --------- Run | Jun Mat Min Mat Min Mat Gar Fac Gar Sto Fac Low Dat Pro Fac Total 14257 | 94 1452 572 2028 526 2117 1379 479 945 751 990 1351 78 1183 312 Wait 2312 | 20 375 46 282 45 639 31 77 29 151 243 85 . 134 155 Move 10785 | 50 956 513 1590 477 1381 1163 376 824 566 581 1166 78 987 77 Hop . | . . . . . . . . . . . . . . . Pick Up 156 | 9 26 . 39 2 12 12 5 8 6 14 14 . 7 2 Fast Attach 53 | 7 . 1 6 . 6 2 2 3 5 7 2 . 9 3 Attach 67 | . 6 1 8 . 5 6 3 2 . 14 4 . 1 17 Detach 7 | . . . 2 . . 1 . 1 . . . . . 3 Swap 83 | . 10 . 15 . 4 2 2 2 2 17 16 . 6 7 Drop 118 | 1 18 . 27 2 9 10 4 11 8 8 2 . 15 3 Fire 530 | 7 61 11 58 . 61 86 10 21 13 90 47 . 22 43 Melee 5 | . . . 1 . . . . . . . 2 . . 2 Ram . | . . . . . . . . . . . . . . . Kick . | . . . . . . . . . . . . . . . Crush . | . . . . . . . . . . . . . . . Escape Stasis 48 | . . . . . . 32 . . . 16 . . . . Rewire 91 | . . . . . . 34 . 44 . . 13 . . . Trap 2 | . . . . . . . . . . . . . 2 . Miscellaneous . | . . . . . . . . . . . . . . . Route ------- -11/Junkyard -10/Materials (discovered 4 exits: *Mat x3 / [*Min]) -10/Mines (discovered 3 exits: *Mat x2 / [*Exi]) -9/Materials (discovered 4 exits: *Mat x3 / *Min) -9/Mines (discovered 3 exits: *Mat x2 / [*Zio]) -8/Materials (discovered 3 exits: *Fac x2 / Gar) -8/Garrison (discovered 3 exits: *Fac x3) -7/Factory (discovered 2 exits: Sto / Gar) -7/Garrison (discovered 3 exits: *Sto x3) -7/Storage -6/Factory (discovered 5 exits: [*Fac] / *Low x2 / Ext x2) -6/Lower Caves (discovered 2 exits: [*Low] / *Dat) -6/Data Miner -5/Proximity Caves -5/Factory (discovered 2 exits: Upp x2) History --------- Turn | Location | Event 6 | -11/Junkyard | Discovered new exit (range 16) 120 | -11/Junkyard | Entered Materials 318 | -10/Materials | Build established: Mutant 789 | -10/Materials | Discovered new exit (range 15) 1045 | -10/Materials | Discovered new exit (range 12) 1155 | -10/Materials | Central database locked down 1356 | -10/Materials | Discovered new exit (range 3) 1361 | -10/Materials | Discovered new exit (range 15) 1996 | -10/Materials | Entered Mines 2023 | -10/Mines | Met a Derelict bent on vengeance 2035 | -10/Mines | Core integrity fell below 50% 2344 | -10/Mines | Discovered new exit (range 6) 2463 | -10/Mines | Discovered new exit (range 15) 2534 | -10/Mines | Deemed a non-threat by the Exiles lab entrance 2534 | -10/Mines | Discovered new exit (range 5) 2611 | -10/Mines | Entered Materials 2611 | -9/Materials | Accompanied by 2 allies 2611 | -9/Materials | Evolved 2 slots: Utility x2 2616 | -9/Materials | Led the pair of lost Derelicts to an unsafe place 3286 | -9/Materials | Discovered new exit (range 16) 3509 | -9/Materials | Central database locked down 3560 | -9/Materials | Identified exit to Mines 4105 | -9/Materials | Discovered new exit (range 7) 4355 | -9/Materials | Discovered new exit (range 15) 4591 | -9/Materials | Repaired Arm. Wheel 4624 | -9/Materials | Repaired Hrd. Light Armor Plating 4910 | -9/Materials | Repaired Hcp. Storage Unit 4965 | -9/Materials | Repaired Imp. Heat Sink 5068 | -9/Materials | Entered Mines 5068 | -9/Mines | Accompanied by 1 ally 5188 | -9/Mines | Discovered new exit (range 8) 5222 | -9/Mines | Found a damaged Exp. Sensor Array with a note attached 5232 | -9/Mines | Found Prototype Device 5256 | -9/Mines | Discovered new exit (range 9) 5374 | -9/Mines | A Derelict revealed a hidden shortcut to a safe place 5689 | -9/Mines | Entered Materials 5689 | -8/Materials | Accompanied by 1 ally 5689 | -8/Materials | Evolved 2 slots: Utility x2 6231 | -8/Materials | Repaired Hardlight Generator 6376 | -8/Materials | Discovered new exit (range 5) 6674 | -8/Materials | Repaired Hvy. Assault Cannon 6778 | -8/Materials | Build established: Hacker-Mutant 6978 | -8/Materials | Identified Exp. Sensor Array 7134 | -8/Materials | Repaired Broken Exp. Sensor Array 7170 | -8/Materials | Repaired Arm. Wheel 7223 | -8/Materials | Repaired Hvy. Ion Engine 7256 | -8/Materials | Repaired Hrd. Light Armor Plating 7663 | -8/Materials | Central database locked down 7803 | -8/Materials | Discovered new exit (range 10) 8171 | -8/Materials | Identified exit to Garrison 8174 | -8/Materials | Entered Garrison 8376 | -8/Garrison | Triggered checkpoint 8404 | -8/Garrison | Triggered checkpoint 8410 | -8/Garrison | Garrison Relay disabled 8457 | -8/Garrison | Destroyed 7 combat bots 8504 | -8/Garrison | Garrison Relay disabled 8660 | -8/Garrison | Triggered checkpoint 8701 | -8/Garrison | Triggered checkpoint 8754 | -8/Garrison | Triggered checkpoint 8784 | -8/Garrison | Triggered checkpoint 9012 | -8/Garrison | Triggered checkpoint 9042 | -8/Garrison | Garrison Relay disabled 9058 | -8/Garrison | Discovered new exit (range 8) 9088 | -8/Garrison | Rescued a captive Derelict 9308 | -8/Garrison | Discovered new exit (range 5) 9338 | -8/Garrison | Triggered checkpoint 9365 | -8/Garrison | Garrison Relay disabled 9515 | -8/Garrison | Garrison Relay disabled 9602 | -8/Garrison | Triggered checkpoint 9623 | -8/Garrison | Garrison Relay disabled 9647 | -8/Garrison | Discovered new exit (range 14) 9905 | -8/Garrison | Entered Factory 9905 | -7/Factory | Accompanied by 3 allies 9905 | -7/Factory | Evolved 2 slots: Utility x2 9906 | -7/Factory | Identified exit to Storage 10456 | -7/Factory | Repaired Arm. Wheel 10530 | -7/Factory | Identified exit to Garrison 10530 | -7/Factory | Entered Garrison 10530 | -7/Garrison | Discovered recently destroyed garrison 10530 | -7/Garrison | Accompanied by 4 allies 10582 | -7/Garrison | Found embedded Infiltrators 10669 | -7/Garrison | Garrison Relay disabled 10965 | -7/Garrison | Discovered exit to Storage (range 10) 11005 | -7/Garrison | Garrison Relay disabled 11060 | -7/Garrison | H-XX Assembler disabled 11120 | -7/Garrison | Build established: Commander-Mutant 11223 | -7/Garrison | Garrison Relay disabled 11309 | -7/Garrison | Discovered exit to Storage (range 10) 11419 | -7/Garrison | Discovered exit to Storage (range 10) 11452 | -7/Garrison | Rescued a captive Derelict 11514 | -7/Garrison | Garrison Relay disabled 11623 | -7/Garrison | Garrison Relay disabled 11637 | -7/Garrison | Discovered exit to Storage (range 32) 11637 | -7/Garrison | Discovered exit to Storage (range 72) 11637 | -7/Garrison | Discovered exit to Storage (range 61) 11661 | -7/Garrison | Learned Storage security intel 11792 | -7/Garrison | Entered Storage 11792 | -7/Storage | Accompanied by 13 allies 11863 | -7/Storage | Garrison activated, responded to threat 12107 | -7/Storage | Met 01-MTF 12191 | -7/Storage | Assisted by bots powering up and referring to "LRC-V3" 12312 | -7/Storage | Garrison activated, responded to threat 12592 | -7/Storage | First assault squad dispatched 12629 | -7/Storage | Repaired Imp. Kinecellerator 12654 | -7/Storage | High security lockdown imminent 12726 | -7/Storage | Discovered new exit (range 16) 12734 | -7/Storage | High security lockdown engaged 12764 | -7/Storage | Entered Factory 12764 | -6/Factory | Accompanied by 17 allies (01-MTF) 12764 | -6/Factory | Evolved 2 slots: Utility x2 12769 | -6/Factory | 01-MTF left 13114 | -6/Factory | First assault squad dispatched 13245 | -6/Factory | Identified exit to Lower Caves 13245 | -6/Factory | Identified exit to Extension 13337 | -6/Factory | Repaired Adv. Shield Generator? 13403 | -6/Factory | Repaired Imp. Heavy Armor Plating 13460 | -6/Factory | Repaired Hvy. Mass Driver 13481 | -6/Factory | Build established: Mutant 13600 | -6/Factory | Repaired Broken Neutrino Core 13623 | -6/Factory | Spotted B-75 Beast 13781 | -6/Factory | Discovered new exit (range 4) 13956 | -6/Factory | Fabricated W-16 Scout (x2) 14076 | -6/Factory | Lost 4 parts (1p1n1u1w) 14082 | -6/Factory | Destroyed 8 combat bots 14217 | -6/Factory | Entered Lower Caves 14218 | -6/Lower Caves | A Derelict revealed a hidden shortcut to meet someone special 14267 | -6/Lower Caves | Met a Warlord Commander 14268 | -6/Lower Caves | Learned location of Warlord (-4) 14271 | -6/Lower Caves | Found Encrypted Comm Array 14880 | -6/Lower Caves | Encountered a Warlord checkpoint 15203 | -6/Lower Caves | Attracted the attention of an 0b10 outpost 15830 | -6/Lower Caves | Found Alien Artifact 15831 | -6/Lower Caves | Identified Core Expander 15831 | -6/Lower Caves | Installed Core Expander, added new Utility slot 16630 | -6/Lower Caves | Discovered new exit (range 10) 17421 | -6/Lower Caves | Entered Data Miner 17421 | -6/Data Miner | Accompanied by 2 allies 17421 | -6/Data Miner | Discovered new exit (range 6) 17469 | -6/Data Miner | Met Data Miner 17514 | -6/Data Miner | Learned location of Section 7 (-3) 17514 | -6/Data Miner | Acquired the access code to Warlord's prototype stash 17559 | -6/Data Miner | Received God Mode back door access code from Data Miner 17616 | -6/Data Miner | Entered Proximity Caves 17616 | -5/Proximity Caves | Accompanied by 2 allies 17735 | -5/Proximity Caves | Escorted by Enhanced Grunt 17870 | -5/Proximity Caves | Found Imp. Powered Armor 17880 | -5/Proximity Caves | Found Imp. Powered Armor 18259 | -5/Proximity Caves | Learned 4 Factory zone layouts 18325 | -5/Proximity Caves | Build established: Scavenger-Mutant 18569 | -5/Proximity Caves | Unaware initiated a cargo recovery operation 18584 | -5/Proximity Caves | Spotted B-75 Beast 18598 | -5/Proximity Caves | Allies destroyed B-75 Beast 19530 | -5/Proximity Caves | Build established: Mutant 19779 | -5/Proximity Caves | Found Corrupted Prototype Device 19907 | -5/Proximity Caves | Discovered new exit (range 15) 19937 | -5/Proximity Caves | Learned Factory trap positions 20314 | -5/Proximity Caves | Identified Exp. Thermal Shield 20315 | -5/Proximity Caves | System corruption reached 10% 20315 | -5/Proximity Caves | Entered Factory 20315 | -5/Factory | Evolved 2 slots: Utility x2 20316 | -5/Factory | Identified exit to Upper Caves 20318 | -5/Factory | Loaded intel: 93 trap records 20658 | -5/Factory | Garrison activated, responded to threat 20681 | -5/Factory | Core integrity fell below 50% 20710 | -5/Factory | Core integrity fell below 20% 20746 | -5/Factory | Lost 19 parts (2p3n9u5w) 20806 | -5/Factory | Destroyed by G-50 Soldier with Heavy Laser Last Messages --------------- 20788_ U-05 Engineer lays Concrete. 20791_ Slug penetrates U-05 Engineer. 20791_ Slug penetrates Garrison Access. 20791_ ALERT: Construction progress impeded, dispatching reinforcements to local area. 20792_ K-01 Serf collects debris. 20792_ U-05 Engineer lays Concrete. 20793_ K-01 Serf collects debris. 20794_ Slug penetrates L-41 Fighter. 20794_ Slug penetrates U-05 Engineer. 20794_ L-41 Fighter knocked back. 20796_ K-01 Serf collects debris. 20797_ Slug penetrates L-41 Fighter. 20797_ Destroyed Imp. Melee Analysis Suite. 20799_ K-01 Serf collects debris. 20800_ L-41 Fighter destroyed. 20801_ >> DECODED: Antigrav System location. 20803_ Slug penetrates G-50 Soldier. 20803_ G-50 Soldier destroyed. 20803_ K-01 Serf collects debris. Map ----- +----------------------------------------------------+ | ????????????????# #????????????????????????? | | ????????????????# #????????????????????????? | | ????????????????# #????????????????????????? | | ????????????????# #????????????????????????? | | ????????########### #????????????????????????? | | ????????# ! # #????????????????????????? | | ????????# # #????????????????????????? | | ????????# + #????????????????????????? | | ????????# # #????????????????????????? | | ????????# """"""" # #????????????????????????? | | ????????# """"""" # #????????????????????????? | | ????????# """"""" # #????????????????????????? | | ????????# """"""" # ###??????????????????????? | | ????????########### " ???????????????????????? | | ????????????????### "#???????????????????????? | | ??????????????????# "????????????????????????? | | ??????????????????# ###########??????????????? | | ??????????????????# %# k ;#??????????????? | | ??????????????????# %[# "#???????????????? | | ???????????######## % ; "#???????????????? | | !???|??????#% %% % %# ! G#???????????????? | | ???????????#%% % % % /uk% "#???????????????? | | ???????????# %% # g "#???????????????? | | ???????????# % "T # g #???????????????? | | ???????????# """""= #%%* #???????????????? | | ???????????# * #@ % #???????????????? | | ???????????# / ##########???????????????? | | ???????? ??????????????????? | | ?????? ^ ????????????????? | | ??????? ????????????????? | | ??????? ???????????????? | | ??????? ^% ???????????????? | | ????????+### % / ##????????????????? | | ???????????# !%=% #?????????????????? | | ?????????[?# ^ #?????????????????? | | ???????????# ! #?????????????????? | | ???????????+ "!![ +?????????????????? | | ????????]???? "%" ???????????????????? | | ???????????????? " ??????????????????????? | | ??????????????????####+##????????????????????????? | | ?????????????????????????????????????????????????? | | ?????????????????????????????????????????????????? | | ???????????????????=?????????????????????????????? | | ?????????????????????????????????????????????????? | | ??????????????????|??????????????????????????????? | | ?????????????????????????????????????????????????? | | ??????????????????!??????????????????????????????? | | ?????????????????????????????????????????????????? | | ???????????????????????????????????????????!??^??? | | ???????????########??????????????????????????????? | +----------------------------------------------------+ Best States ------------- Heat Dissipation 68 Energy Generation 19 Energy Capacity 450 Matter Stores 300 Matter Capacity 300 Sight Range 16 Robot Scan Range 20 Terrain Scan Range 24 Terrain Scan Density 10 Jamming Range 16 Cloak Strength 2 Corruption Block 15 Armor Coverage 1200 Resistance: TH 30 Core Shielding 20 Power Shielding 90 Weapon Cycling 15 Evasion (%) 55 Targeting Accuracy 13 Target Analysis 8 Core Analysis 6 Recoil Reduction 2 Kinecelleration 40 Offensive Hacking 14 Defensive Hacking 22 Trap Extractor Capacity 6 Item Schematics ----------------- Imp. Assault Rifle | -9/Materials | Scanalyzed Hacking Suite | -9/Materials | Scanalyzed Arm. Wheel | -9/Materials | Scanalyzed Mak. System Shield | -9/Materials | Scanalyzed Lrg. Storage Unit | -9/Materials | Scanalyzed Hcp. Matter Pod | -9/Materials | Scanalyzed Mni. Grenade Launcher | -9/Materials | Scanalyzed Maul | -9/Materials | Scanalyzed Exp. Sensor Array | -8/Materials | Scanalyzed Hcp. Storage Unit | -8/Materials | Scanalyzed Energy Well | -7/Storage | Hacked Combat Drone Bay | -6/Data Miner | Free Lgt. Regenerative Plating | -6/Data Miner | Free Cld. Gravmag System | -6/Data Miner | Free Exp. Heat Sink | -6/Data Miner | Free Kinetic Spear | -6/Data Miner | Free Centrium Wheel | -6/Data Miner | Free Matter Neutralizer | -6/Data Miner | Free Point Defense Array | -6/Data Miner | Free Hyp. Coil Gun | -6/Data Miner | Free Railgun | -6/Data Miner | Free Adv. Corruption Screen | -6/Data Miner | Free Robot Schematics ------------------ W-16 Scout | -8/Materials | Hacked Y-54 Guardian | -6/Data Miner | Free M-22 Extractor | -6/Data Miner | Free M-30 Cleanser | -6/Data Miner | Free X-72 Disruptor | -6/Data Miner | Free M-36 Artificer | -6/Data Miner | Free Fabricated ------------ W-16 Scout | x2 | -6/Factory Alien Tech Used ----------------- Core Expander Achievements -------------- None Challenges ------------ None Game ------ Seed DisruptionCentriumKit Manual? 0 Play Time 02:57:27 Cumulative 594.3 hours Start 2023.03.24 @ 21:18:13 End 2023.03.25 @ 00:36:21 Sessions 1 Manual Loads 0 Difficulty Rogue Special Mode None Game No. 414 Rogue 414 Adventurer 0 Explorer 0 Win Type - Total 1 Types 1/0/0/0/0/0/0/0/0 Lore% 70 Gallery% 78 Achievement% 58 Wizard Run 0 Options --------- ASCII 0 Keyboard 0 Movement Mouse Keybinds 0 Fullscreen 1 Font 16/SmallcapsGlow Map View 75x55 Tactical HUD 1 Map Filters NONE Filters NONE Steam 1 RUN: e8fb4cf0-1b89-4bcc-9a30-b766916f6ba9